{"text_format":"2","workbook":"xlsx","n_sheets":1,"sheets":["Munka1"],"not_rendered":{"charts":0,"images":0,"macros":0,"external_links":0,"defined_names":0,"comments":0,"pivot_tables":0},"unopened":[],"bounds":{"document_bytes":16777216,"sheet_cells":100000,"run_cost":"one","rows_first":2000,"rows_last":500,"rows_between":2000,"halvings":0,"cell_chars":16384,"cell_head_chars":4096},"cells_cut":0,"cells_raw":0,"read":"whole","date_system":"1900"}

{"sheet":"Munka1","index":0,"n_rows":552,"n_cols":6,"rows_kept":552,"cut":false,"hidden":false,"merged":[[545,0,546,0],[547,0,548,0],[549,0,550,0],[532,0,533,0],[534,0,535,0],[536,0,537,0],[538,0,539,0],[540,0,541,0],[543,0,544,0],[518,0,519,0],[520,0,521,0],[522,0,523,0],[525,0,526,0],[527,0,528,0],[530,0,531,0],[504,0,505,0],[506,0,507,0],[508,0,509,0],[511,0,512,0],[513,0,514,0],[515,0,516,0],[492,0,493,0],[494,0,495,0],[496,0,497,0],[498,0,499,0],[500,0,501,0],[502,0,503,0],[479,0,480,0],[481,0,482,0],[483,0,484,0],[486,0,487,0],[488,0,489,0],[490,0,491,0],[467,0,468,0],[469,0,470,0],[471,0,472,0],[473,0,474,0],[475,0,476,0],[477,0,478,0],[454,0,455,0],[456,0,457,0],[458,0,459,0],[460,0,461,0],[462,0,463,0],[465,0,466,0],[440,0,441,0],[442,0,443,0],[444,0,445,0],[447,0,448,0],[450,0,451,0],[452,0,453,0],[427,0,428,0],[429,0,430,0],[431,0,432,0],[434,0,435,0],[436,0,437,0],[438,0,439,0],[414,0,415,0],[416,0,417,0],[418,0,419,0],[420,0,421,0],[422,0,423,0],[425,0,426,0],[401,0,402,0],[403,0,404,0],[405,0,406,0],[408,0,409,0],[410,0,411,0],[412,0,413,0],[388,0,389,0],[390,0,391,0],[392,0,393,0],[394,0,395,0],[396,0,397,0],[398,0,399,0],[374,0,375,0],[376,0,377,0],[378,0,379,0],[380,0,381,0],[383,0,384,0],[386,0,387,0],[361,0,362,0],[363,0,364,0],[365,0,366,0],[367,0,368,0],[369,0,370,0],[371,0,372,0],[348,0,349,0],[351,0,352,0],[353,0,354,0],[355,0,356,0],[357,0,358,0],[359,0,360,0],[334,0,335,0],[336,0,337,0],[338,0,339,0],[340,0,341,0],[343,0,344,0],[346,0,347,0],[322,0,323,0],[324,0,325,0],[326,0,327,0],[328,0,329,0],[330,0,331,0],[332,0,333,0],[308,0,309,0],[310,0,311,0],[313,0,314,0],[315,0,316,0],[318,0,319,0],[320,0,321,0],[295,0,296,0],[297,0,298,0],[299,0,300,0],[302,0,303,0],[304,0,305,0],[306,0,307,0],[283,0,284,0],[285,0,286,0],[287,0,288,0],[289,0,290,0],[291,0,292,0],[293,0,294,0],[271,0,272,0],[273,0,274,0],[275,0,276,0],[277,0,278,0],[279,0,280,0],[281,0,282,0],[259,0,260,0],[261,0,262,0],[263,0,264,0],[265,0,266,0],[267,0,268,0],[269,0,270,0],[244,0,245,0],[247,0,248,0],[249,0,250,0],[251,0,252,0],[254,0,255,0],[256,0,257,0],[230,0,231,0],[232,0,233,0],[234,0,235,0],[237,0,238,0],[240,0,241,0],[242,0,243,0],[217,0,218,0],[219,0,220,0],[221,0,222,0],[223,0,224,0],[226,0,227,0],[228,0,229,0],[205,0,206,0],[207,0,208,0],[209,0,210,0],[211,0,212,0],[213,0,214,0],[215,0,216,0],[190,0,191,0],[193,0,194,0],[195,0,196,0],[197,0,198,0],[200,0,201,0],[203,0,204,0],[175,0,176,0],[177,0,178,0],[180,0,181,0],[182,0,183,0],[185,0,186,0],[188,0,189,0],[161,0,162,0],[163,0,164,0],[165,0,166,0],[167,0,168,0],[169,0,170,0],[172,0,173,0],[148,0,149,0],[150,0,151,0],[152,0,153,0],[154,0,155,0],[156,0,157,0],[159,0,160,0],[135,0,136,0],[137,0,138,0],[139,0,140,0],[141,0,142,0],[143,0,144,0],[145,0,146,0],[121,0,122,0],[123,0,124,0],[125,0,126,0],[128,0,129,0],[131,0,132,0],[133,0,134,0],[106,0,107,0],[108,0,109,0],[111,0,112,0],[113,0,114,0],[116,0,117,0],[118,0,119,0],[92,0,93,0],[94,0,95,0],[96,0,97,0],[98,0,99,0],[101,0,102,0],[103,0,104,0],[79,0,80,0],[81,0,82,0],[83,0,84,0],[85,0,86,0],[88,0,89,0],[90,0,91,0],[65,0,66,0],[67,0,68,0],[70,0,71,0],[72,0,73,0],[74,0,75,0],[76,0,77,0],[53,0,54,0],[55,0,56,0],[57,0,58,0],[59,0,60,0],[61,0,62,0],[63,0,64,0],[40,0,41,0],[42,0,43,0],[45,0,46,0],[47,0,48,0],[49,0,50,0],[51,0,52,0],[28,0,29,0],[30,0,31,0],[32,0,33,0],[34,0,35,0],[36,0,37,0],[38,0,39,0],[16,0,17,0],[18,0,19,0],[20,0,21,0],[22,0,23,0],[24,0,25,0],[26,0,27,0],[4,0,5,0],[6,0,7,0],[8,0,9,0],[10,0,11,0],[12,0,13,0],[14,0,15,0]]}
[]
[]
[null,"Timer Higher Education (THE)",null,null,null,"QS Ranking"]
[null,"https://www.timeshighereducation.com/world-university-rankings/2024/world-ranking#!/length/-1/sort_by/rank/sort_order/asc/cols/stats",null,null,null,"https://www.topuniversities.com/world-university-rankings?page=0"]
["Rank","Name"]
[null,"Country/Region"]
[1,"University of Oxford",null,null,null,"1  Massachusetts Institute of Technology (MIT) Cambridge,  United States 100 Shortlist"]
[null,"United Kingdom",null,null,null,"2  University of Cambridge Cambridge,  United Kingdom More Details 99.2 Shortlist"]
[2,"Stanford University",null,null,null,"3  University of Oxford Oxford,  United Kingdom 98.9 Shortlist"]
[null,"United States"]
[3,"Massachusetts Institute of Technology",null,null,null,"4  Harvard University Cambridge,  United States 98.3 Shortlist"]
[null,"United States",null,null,null,"5  Stanford University Stanford,  United States 98.1 Shortlist"]
[4,"Harvard University",null,null,null,"6  Imperial College London London,  United Kingdom More Details 97.8 Shortlist"]
[null,"United States",null,null,null,"7  ETH Zurich Zürich,  Switzerland 93.3 Shortlist"]
[5,"University of Cambridge",null,null,null,"8  National University of Singapore (NUS) Singapore,  Singapore More Details 92.7 Shortlist"]
[null,"United Kingdom",null,null,null,"9  UCL London,  United Kingdom More Details 92.4 Shortlist"]
[6,"Princeton University",null,null,null,"10  University of California, Berkeley (UCB) Berkeley,  United States 90.4 Shortlist"]
[null,"United States"]
[7,"California Institute of Technology",null,null,null,"11  University of Chicago Chicago,  United States 90.3 Shortlist"]
[null,"United States",null,null,null,"12  University of Pennsylvania Philadelphia,  United States 89.4 Shortlist"]
[8,"Imperial College London",null,null,null,"13  Cornell University Ithaca,  United States 89.3 Shortlist"]
[null,"United Kingdom",null,null,null,"14  The University of Melbourne Parkville,  Australia 87.9 Shortlist"]
[9,"University of California, Berkeley",null,null,null,"15  California Institute of Technology (Caltech) Pasadena,  United States 87.8 Shortlist"]
[null,"United States",null,null,null,"16  Yale University New Haven,  United States 87.7 Shortlist"]
[10,"Yale University",null,null,null,"=17  Peking University Beijing,  China (Mainland) 87 Shortlist"]
[null,"United States",null,null,null,"=17  Princeton University Princeton,  United States 87 Shortlist"]
[11,"ETH Zurich",null,null,null,"=19  The University of New South Wales (UNSW Sydney) Sydney,  Australia More Details 86.7 Shortlist"]
[null,"Switzerland",null,null,null,"=19  The University of Sydney Sydney,  Australia More Details 86.7 Shortlist"]
[12,"Tsinghua University"]
[null,"China",null,null,null,"21  University of Toronto Toronto,  Canada 86.3 Shortlist"]
[13,"The University of Chicago",null,null,null,"22  The University of Edinburgh Edinburgh,  United Kingdom More Details 86.1 Shortlist"]
[null,"United States",null,null,null,"23  Columbia University New York City,  United States 85.9 Shortlist"]
[14,"Peking University",null,null,null,"24  Université PSL Paris,  France More Details 85.8 Shortlist"]
[null,"China",null,null,null,"25  Tsinghua University Beijing,  China (Mainland) 84.9 Shortlist"]
[15,"Johns Hopkins University",null,null,null,"=26  Nanyang Technological University, Singapore (NTU Singapore) Singapore,  Singapore 84.5 Shortlist"]
[null,"United States",null,null,null,"=26  The University of Hong Kong Hong Kong,  Hong Kong SAR 84.5 Shortlist"]
[16,"University of Pennsylvania",null,null,null,"28 Dagger Icon  Johns Hopkins University Baltimore,  United States 84.5 Shortlist"]
[null,"United States",null,null,null,"28  The University of Tokyo Tokyo,  Japan 84.3 Shortlist"]
[17,"Columbia University",null,null,null,"29  University of California, Los Angeles (UCLA) Los Angeles,  United States 83.8 Shortlist"]
[null,"United States",null,null,null,"30  McGill University Montreal,  Canada 83.7 Shortlist"]
[18,"University of California, Los Angeles",null,null,null,"32  The University of Manchester Manchester,  United Kingdom 82.2 Shortlist"]
[null,"United States",null,null,null,"33  University of Michigan-Ann Arbor Ann Arbor,  United States 81.7 Shortlist"]
[19,"National University of Singapore",null,null,null,"=34  Australian National University (ANU) Canberra,  Australia More Details 81.5 Shortlist"]
[null,"Singapore",null,null,null,"=34  University of British Columbia Vancouver,  Canada 81.5 Shortlist"]
[33.334000000000003,"20.0",null,null,null,"36  EPFL – École polytechnique fédérale de Lausanne Lausanne,  Switzerland 80.4 Shortlist"]
[20,"Cornell University",null,null,null,"37  Technical University of Munich Munich,  Germany 80 Shortlist"]
[null,"United States",null,null,null,"=38  Institut Polytechnique de Paris Palaiseau Cedex,  France More Details 79.5 Shortlist"]
[21,"University of Toronto",null,null,null,"=38  New York University (NYU) New York City,  United States 79.5 Shortlist"]
[null,"Canada",null,null,null,"40  King's College London London,  United Kingdom 79.3 Shortlist"]
[22,"UCL",null,null,null,"41  Seoul National University Seoul,  South Korea 78.5 Shortlist"]
[null,"United Kingdom",null,null,null,"42  Monash University Melbourne,  Australia 78.2 Shortlist"]
[23,"University of Michigan-Ann Arbor",null,null,null,"43  The University of Queensland Brisbane City,  Australia More Details 78.1 Shortlist"]
[null,"United States",null,null,null,"=44  Zhejiang University Hangzhou,  China (Mainland) 77.8 Shortlist"]
[24,"Carnegie Mellon University",null,null,null,"45 Dagger Icon  The London School of Economics and Political Science (LSE) London,  United Kingdom More Details 76.9 Shortlist"]
[null,"United States",null,null,null,"46  Kyoto University Kyoto,  Japan 76.3 Shortlist"]
[25,"University of Washington",null,null,null,"=47  Delft University of Technology Delft,  Netherlands 76.2 Shortlist"]
[null,"United States",null,null,null,"=47  Northwestern University Evanston,  United States 76.2 Shortlist"]
[26,"Duke University",null,null,null,"=47  The Chinese University of Hong Kong (CUHK) Hong Kong,  Hong Kong SAR More Details 76.2 Shortlist"]
[null,"United States",null,null,null,"50  Fudan University Shanghai,  China (Mainland) 74.4 Shortlist"]
[27,"New York University",null,null,null,"51  Shanghai Jiao Tong University Shanghai,  China (Mainland) 74.3 Shortlist"]
[null,"United States",null,null,null,"52  Carnegie Mellon University Pittsburgh,  United States 73.7 Shortlist"]
[28,"Northwestern University",null,null,null,"53  University of Amsterdam Amsterdam,  Netherlands More Details 73.4 Shortlist"]
[null,"United States",null,null,null,"54  Ludwig-Maximilians-Universität München Munich,  Germany More Details 72.5 Shortlist"]
[29,"The University of Tokyo",null,null,null,"55  University of Bristol Bristol,  United Kingdom 5+ QS Stars More Details 72.4 Shortlist"]
[null,"Japan",null,null,null,"56  KAIST - Korea Advanced Institute of Science & Technology Daejeon,  South Korea More Details 72.2 Shortlist"]
[{"$f":"30","v":30},"University of Edinburgh",null,null,null,"57  Duke University Durham,  United States 72 Shortlist"]
[null,"United Kingdom",null,null,null,"58  University of Texas at Austin Austin,  United States 71.8 Shortlist"]
[{"$f":"30","v":30},"Technical University of Munich",null,null,null,"59  Sorbonne University Paris,  France 71.7 Shortlist"]
[null,"Germany",null,null,null,"60  The Hong Kong University of Science and Technology Hong Kong,  Hong Kong SAR More Details 71.1 Shortlist"]
[35.506,"1944-04-01",null,null,null,"61  KU Leuven Leuven,  Belgium More Details 70.1 Shortlist"]
[32,"Nanyang Technological University, Singapore",null,null,null,"62  University of California, San Diego (UCSD) San Diego,  United States 70 Shortlist"]
[null,"Singapore",null,null,null,"63  University of Washington Seattle,  United States 69.2 Shortlist"]
[33,"École Polytechnique Fédérale de Lausanne",null,null,null,"64  University of Illinois at Urbana-Champaign Champaign,  United States 69.1 Shortlist"]
[null,"Switzerland",null,null,null,"=65  The Hong Kong Polytechnic University Hong Kong SAR,  Hong Kong SAR More Details 68.7 Shortlist"]
[34,"University of California, San Diego",null,null,null,"=65  Universiti Malaya (UM) Kuala Lumpur,  Malaysia 68.7 Shortlist"]
[null,"United States",null,null,null,"67  The University of Warwick Coventry,  United Kingdom 68.6 Shortlist"]
[35,"University of Hong Kong",null,null,null,"68  The University of Auckland Auckland,  New Zealand More Details 68 Shortlist"]
[null,"Hong Kong",null,null,null,"69  National Taiwan University (NTU) Taipei,  Taiwan More Details 67.9 Shortlist"]
[18.103000000000002,"2024-03-18",null,null,null,"70  City University of Hong Kong Hong Kong SAR 5+ QS Stars More Details 67.7 Shortlist"]
[36,"Georgia Institute of Technology",null,null,null,"71  Université Paris-Saclay Gif-sur-Yvette,,  France 67.6 Shortlist"]
[null,"United States",null,null,null,"72  The University of Western Australia Perth,  Australia More Details 66.9 Shortlist"]
[37,"University of Melbourne",null,null,null,"=73  Brown University Providence,  United States 66.4 Shortlist"]
[null,"Australia",null,null,null,"=73  KTH Royal Institute of Technology Stockholm,  Sweden More Details 66.4 Shortlist"]
[{"$f":"38","v":38},"King’s College London",null,null,null,"75  University of Leeds Leeds,  United Kingdom 65.5 Shortlist"]
[null,"United Kingdom",null,null,null,"=76  University of Glasgow Glasgow,  United Kingdom 5+ QS Stars More Details 65.2 Shortlist"]
[{"$f":"38","v":38},"LMU Munich",null,null,null,"=76  Yonsei University Seoul,  South Korea 65.2 Shortlist"]
[null,"Germany",null,null,null,"78  Durham University Durham,  United Kingdom 65.1 Shortlist"]
[34.622,"1933-05-01",null,null,null,"79  Korea University Seoul,  South Korea 64.7 Shortlist"]
[40,"Paris Sciences et Lettres – PSL Research University Paris",null,null,null,"80  Osaka University Osaka City,  Japan 63.9 Shortlist"]
[null,"France",null,null,null,"=81  Trinity College Dublin, The University of Dublin Dublin,  Ireland More Details 63.5 Shortlist"]
[41,"University of British Columbia",null,null,null,"=81  University of Southampton Southampton,  United Kingdom 63.5 Shortlist"]
[null,"Canada",null,null,null,"83  Pennsylvania State University University Park,  United States 63.1 Shortlist"]
[42,"University of Illinois at Urbana-Champaign",null,null,null,"84  University of Birmingham Birmingham,  United Kingdom 63 Shortlist"]
[null,"United States",null,null,null,"=85  Lund University Lund,  Sweden More Details 62.8 Shortlist"]
[43,"Shanghai Jiao Tong University",null,null,null,"=85  Universidade de São Paulo São Paulo,  Brazil More Details 62.8 Shortlist"]
[null,"China",null,null,null,"=87  Lomonosov Moscow State University Moscow,  Russia 62.2 Shortlist"]
[44,"Fudan University",null,null,null,"=87  Universität Heidelberg Heidelberg,  Germany More Details 62.2 Shortlist"]
[null,"China",null,null,null,"89  The University of Adelaide Adelaide,  Australia More Details 62 Shortlist"]
[45,"KU Leuven",null,null,null,"90  University of Technology Sydney Haymarket,  Australia 5+ QS Stars More Details 61.8 Shortlist"]
[null,"Belgium",null,null,null,"=91  Tokyo Institute of Technology (Tokyo Tech) Tokyo,  Japan 61.6 Shortlist"]
[49.435000000000002,"1937-03-01",null,null,null,"=91  University of Zurich Zürich,  Switzerland 61.6 Shortlist"]
[46,"London School of Economics and Political Science",null,null,null,"=93  Boston University Boston,  United States 61.4 Shortlist"]
[null,"United Kingdom",null,null,null,"=93  Universidad Nacional Autónoma de México  (UNAM) Mexico City,  Mexico 61.4 Shortlist"]
[47,"Universität Heidelberg",null,null,null,"=95  Universidad de Buenos Aires (UBA) Buenos Aires,  Argentina 61 Shortlist"]
[null,"Germany",null,null,null,"=95  University of St Andrews St. Andrews,  United Kingdom 61 Shortlist"]
[19.315000000000001,"2024-03-13",null,null,null,"97  Georgia Institute of Technology Atlanta,  United States 60.9 Shortlist"]
[48,"Delft University of Technology",null,null,null,"98  Freie Universitaet Berlin Berlin,  Germany 60.8 Shortlist"]
[null,"Netherlands",null,null,null,"99  Purdue University West Lafayette,  United States 60.7 Shortlist"]
[49,"McGill University",null,null,null,"=100  Pohang University of Science And Technology (POSTECH) Pohang ,  South Korea 60.4 Shortlist"]
[null,"Canada",null,null,null,"=100  University of Nottingham Nottingham,  United Kingdom 60.4 Shortlist"]
[30.821000000000002,"2024-11-09",null,null,null,"102  University of Wisconsin-Madison Madison,  United States 60 Shortlist"]
[50,"Karolinska Institute",null,null,null,"103  Pontificia Universidad Católica de Chile (UC) Santiago,  Chile 59.9 Shortlist"]
[null,"Sweden",null,null,null,"104  The University of Sheffield Sheffield,  United Kingdom 59.7 Shortlist"]
[51,"University of Manchester",null,null,null,"105  Uppsala University Uppsala,  Sweden 59.4 Shortlist"]
[null,"United Kingdom",null,null,null,"106  RWTH Aachen University Aachen,  Germany 59.3 Shortlist"]
[40.725000000000001,"2024-06-15",null,null,null,"=107  University of Copenhagen Copenhagen,  Denmark 58.8 Shortlist"]
[52,"University of Texas at Austin",null,null,null,"=107  Utrecht University Utrecht,  Netherlands 58.8 Shortlist"]
[null,"United States",null,null,null,"109  Aalto University Espoo,  Finland More Details 58.7 Shortlist"]
[53,"Chinese University of Hong Kong",null,null,null,"110  Newcastle University Newcastle upon Tyne,  United Kingdom 5+ QS Stars More Details 58.6 Shortlist"]
[null,"Hong Kong",null,null,null,"111  University of Alberta Edmonton,  Canada 58.3 Shortlist"]
[18.29,"2024-08-18",null,null,null,"112  University of Waterloo Waterloo,  Canada 58.1 Shortlist"]
[54,"Monash University",null,null,null,"113  Tohoku University Sendai City,  Japan 58 Shortlist"]
[null,"Australia",null,null,null,"114  Western University London,  Canada 5+ QS Stars 57.4 Shortlist"]
[{"$f":"55","v":55},"Kyoto University",null,null,null,"115  University of Helsinki Helsinki,  Finland More Details 57.2 Shortlist"]
[null,"Japan",null,null,null,"116  University of Southern California Los Angeles,  United States 57.1 Shortlist"]
[{"$f":"55","v":55},"Zhejiang University",null,null,null,"117  University of Oslo Oslo,  Norway 56.9 Shortlist"]
[null,"China",null,null,null,"118  Stockholm University Stockholm,  Sweden 56.8 Shortlist"]
[48.168999999999997,"12.0",null,null,null,"=118 Dagger Icon  University of California, Davis Davis,  United States 56.7 Shortlist"]
[57,"University of Science and Technology of China",null,null,null,"119  KIT, Karlsruhe Institute of Technology Karlsruhe,  Germany 56.4 Shortlist"]
[null,"China",null,null,null,"120  Humboldt-Universität zu Berlin Berlin,  Germany 56.3 Shortlist"]
[20.251999999999999,"2024-08-01",null,null,null,"121  Technical University of Denmark Kongens Lyngby,  Denmark More Details 56.2 Shortlist"]
[58,"Université Paris-Saclay",null,null,null,"122  Lancaster University Lancaster,,  United Kingdom 5 QS Stars More Details 55.7 Shortlist"]
[null,"France",null,null,null,"123  Politecnico di Milano Milan,  Italy More Details 55.2 Shortlist"]
[59,"University of California, Davis",null,null,null,"=124  Eindhoven University of Technology Eindhoven,  Netherlands More Details 55 Shortlist"]
[null,"United States",null,null,null,"=124  University of Basel Basel,  Switzerland 55 Shortlist"]
[60,"The University of Sydney",null,null,null,"=126  Leiden University Leiden,  Netherlands More Details 54.8 Shortlist"]
[null,"Australia",null,null,null,"=126  University of Bern Bern,  Switzerland 54.8 Shortlist"]
[61,"University of Amsterdam",null,null,null,"128  University of Geneva Geneva,  Switzerland 54.2 Shortlist"]
[null,"Netherlands",null,null,null,"129  Chalmers University of Technology Gothenburg,  Sweden More Details 54 Shortlist"]
[62,"Seoul National University",null,null,null,"=130  Macquarie University (Sydney, Australia) Sydney,  Australia More Details 53.7 Shortlist"]
[null,"South Korea",null,null,null,"=130  University of Vienna Vienna,  Austria 53.7 Shortlist"]
[63,"University of Wisconsin-Madison",null,null,null,"=132  University of North Carolina at Chapel Hill Chapel Hill,  United States 53.2 Shortlist"]
[null,"United States",null,null,null,"=134  Sapienza University of Rome Rome,  Italy More Details 52.9 Shortlist"]
[{"$f":"64","v":64},"Brown University",null,null,null,"=134  Texas A&M University College Station,  United States 52.9 Shortlist"]
[null,"United States",null,null,null,"136  Michigan State University East Lansing,  United States 52.7 Shortlist"]
[{"$f":"64","v":64},"The Hong Kong University of Science and Technology",null,null,null,"=137  Universiti Sains Malaysia (USM) Gelugor,  Malaysia 52.6 Shortlist"]
[null,"Hong Kong",null,null,null,"=137  University of Science and Technology of China Hefei,  China (Mainland) 52.6 Shortlist"]
[9.7940000000000005,"2024-09-19",null,null,null,"139  University of Groningen Groningen,  Netherlands 52.5 Shortlist"]
[{"$f":"64","v":64},"Wageningen University & Research",null,null,null,"140  RMIT University Melbourne,  Australia 5+ QS Stars 52.4 Shortlist"]
[null,"Netherlands",null,null,null,"=141  Nanjing University Nanjing,  China (Mainland) 52.1 Shortlist"]
[67,"Australian National University",null,null,null,"=141  Université de Montréal Montreal,  Canada More Details 52.1 Shortlist"]
[null,"Australia",null,null,null,"=143  Aarhus University Aarhus,  Denmark More Details 52 Shortlist"]
[68,"Washington University in St Louis",null,null,null,"=143  King Abdulaziz University (KAU) Jeddah,  Saudi Arabia More Details 52 Shortlist"]
[null,"United States",null,null,null,"=145  Queen Mary University of London London,  United Kingdom 51.9 Shortlist"]
[69,"University of California, Santa Barbara",null,null,null,"=145  Rice University Houston,  United States 51.9 Shortlist"]
[null,"United States",null,null,null,"=145  Sungkyunkwan University (SKKU) Suwon,  South Korea 51.9 Shortlist"]
[70,"The University of Queensland",null,null,null,"148  University of Bath Bath,  United Kingdom More Details 51.8 Shortlist"]
[null,"Australia",null,null,null,"=149  Indian Institute of Technology Bombay (IITB) Mumbai,  India 51.7 Shortlist"]
[42.847000000000001,"1939-01-01",null,null,null,"=149  Universitat Autònoma de Barcelona Barcelona,  Spain More Details 51.7 Shortlist"]
[71,"Institut Polytechnique de Paris",null,null,null,"=151  The Ohio State University Columbus,  United States 51.3 Shortlist"]
[null,"France",null,null,null,"=151  Wageningen University & Research Wageningen,  Netherlands 51.3 Shortlist"]
[72,"University of North Carolina at Chapel Hill",null,null,null,"153  University of Exeter Exeter,  United Kingdom More Details 50.9 Shortlist"]
[null,"United States",null,null,null,"=154  Alma Mater Studiorum - University of Bologna Bologna,  Italy More Details 50.5 Shortlist"]
[73,"Nanjing University",null,null,null,"=154  Cardiff University Cardiff,  United Kingdom More Details 50.5 Shortlist"]
[null,"China",null,null,null,"=154  Technische Universität Berlin (TU Berlin) Berlin,  Germany 50.5 Shortlist"]
[74,"University of Southern California",null,null,null,"=154  Washington University in St. Louis St. Louis,  United States 50.5 Shortlist"]
[null,"United States",null,null,null,"158  Universiti Putra Malaysia (UPM) Seri Kembangan,  Malaysia 5 QS Stars 50.4 Shortlist"]
[75,"Sorbonne University",null,null,null,"=159  Ghent University Ghent,  Belgium 50.2 Shortlist"]
[null,"France",null,null,null,"=159  Universidad de Chile Santiago,  Chile 50.2 Shortlist"]
[76,"Yonsei University (Seoul campus)",null,null,null,"=159  Universiti Kebangsaan Malaysia (UKM) Bangi,  Malaysia 5 QS Stars 50.2 Shortlist"]
[null,"South Korea",null,null,null,"162  University of Wollongong Wollongong,  Australia 5+ QS Stars 50.1 Shortlist"]
[18.960999999999999,"2024-09-13",null,null,null,"163  University of California, Santa Barbara (UCSB) Santa Barbara,  United States 50 Shortlist"]
[77,"Leiden University",null,null,null,"=164  Hanyang University Seoul,  South Korea 49.7 Shortlist"]
[null,"Netherlands",null,null,null,"=164  Kyushu University Fukuoka City,  Japan 49.7 Shortlist"]
[35.072000000000003,"2024-03-19",null,null,null,"=164  Universitat de Barcelona Barcelona,  Spain 49.7 Shortlist"]
[78,"Boston University",null,null,null,"=166 Dagger Icon  Emory University Atlanta,  United States 49.6 Shortlist"]
[null,"United States",null,null,null,"167  University of York York,  United Kingdom 49.4 Shortlist"]
[79,"University of Groningen",null,null,null,"168  University of Florida Gainesville,  United States 49.1 Shortlist"]
[null,"Netherlands",null,null,null,"=169  University of Maryland, College Park College Park,  United States 48.9 Shortlist"]
[31.942,"2024-08-28",null,null,null,"=169  University of Reading Reading,  United Kingdom 48.9 Shortlist"]
[80,"University of Zurich",null,null,null,"=171  Complutense University of Madrid Madrid,  Spain 48.8 Shortlist"]
[null,"Switzerland",null,null,null,"=171  University College Dublin Dublin,  Ireland More Details 48.8 Shortlist"]
[81,"University of Bristol",null,null,null,"=173  Qatar University Doha,  Qatar 48.7 Shortlist"]
[null,"United Kingdom",null,null,null,"=173  The University of Newcastle, Australia (UON) Callaghan,  Australia 48.7 Shortlist"]
[27.335000000000001,"2024-08-14",null,null,null,"=173  University of Cape Town Cape Town,  South Africa 48.7 Shortlist"]
[82,"City University of Hong Kong",null,null,null,"=176  Erasmus University Rotterdam Rotterdam,  Netherlands More Details 48.5 Shortlist"]
[null,"Hong Kong",null,null,null,"=176  Nagoya University Nagoya,  Japan 48.5 Shortlist"]
[9.0760000000000005,"2024-02-13",null,null,null,"=176  University of Liverpool Liverpool,  United Kingdom 48.5 Shortlist"]
[83,"Korea Advanced Institute of Science and Technology (KAIST)",null,null,null,"179  Arizona State University Tempe,  United States 48.1 Shortlist"]
[null,"South Korea",null,null,null,"=180  King Fahd University of Petroleum & Minerals Dhahran,  Saudi Arabia 48 Shortlist"]
[84,"UNSW Sydney",null,null,null,"=180  Université catholique de Louvain (UCLouvain) Louvain-la-Neuve,  Belgium 48 Shortlist"]
[null,"Australia",null,null,null,"182  University of Calgary Calgary,  Canada 47.9 Shortlist"]
[47.043999999999997,"1936-06-01",null,null,null,"183  Curtin University Perth,  Australia 5+ QS Stars More Details 47.8 Shortlist"]
[85,"University of Minnesota",null,null,null,"=184  Technische Universität Wien Vienna,  Austria 47.6 Shortlist"]
[null,"United States",null,null,null,"=184  Tecnológico de Monterrey Monterrey,  Mexico 5+ QS Stars More Details 47.6 Shortlist"]
[86,"Purdue University West Lafayette",null,null,null,"=184  École Normale Supérieure de Lyon Lyon,  France 47.6 Shortlist"]
[null,"United States",null,null,null,"187  University of Gothenburg Gothenburg,  Sweden 47.3 Shortlist"]
[{"$f":"87","v":87},"University of Glasgow",null,null,null,"188  Universiti Teknologi Malaysia Skudai,  Malaysia 5 QS Stars 46.9 Shortlist"]
[null,"United Kingdom",null,null,null,"=189  McMaster University Hamilton,  Canada 46.8 Shortlist"]
[32.270000000000003,"2024-04-14",null,null,null,"=189  Queensland University of Technology (QUT) Brisbane,  Australia More Details 46.8 Shortlist"]
[{"$f":"87","v":87},"Hong Kong Polytechnic University",null,null,null,"=189  Universite libre de Bruxelles Brussels,  Belgium 46.8 Shortlist"]
[null,"Hong Kong",null,null,null,"=192  Albert-Ludwigs-Universitaet Freiburg Freiburg im Breisgau,  Germany 46.7 Shortlist"]
[20.033999999999999,"2024-06-30",null,null,null,"=192  Ecole des Ponts ParisTech Paris,  France 46.7 Shortlist"]
[{"$f":"87","v":87},"Humboldt University of Berlin",null,null,null,"194  Wuhan University Wuhan,  China (Mainland) 46.6 Shortlist"]
[null,"Germany",null,null,null,"195  University of Minnesota Twin Cities Minneapolis,  United States 46.4 Shortlist"]
[90,"RWTH Aachen University",null,null,null,"196  Hokkaido University Sapporo,  Japan 46.2 Shortlist"]
[null,"Germany",null,null,null,"197  Indian Institute of Technology Delhi (IITD) New Delhi,  India 46.1 Shortlist"]
[91,"University of Bonn",null,null,null,"198  Universidad de los Andes Bogotá,  Colombia 46 Shortlist"]
[null,"Germany",null,null,null,"=199  Universidad Autónoma de Madrid Madrid,  Spain 45.9 Shortlist"]
[{"$f":"92","v":92},"University of California, Irvine",null,null,null,"=199  Waseda University Tokyo,  Japan 45.9 Shortlist"]
[null,"United States",null,null,null,"202  Queen's University Belfast Belfast,  United Kingdom More Details 45.8 Shortlist"]
[{"$f":"92","v":92},"Vanderbilt University",null,null,null,"=203  King Saud University Riyadh,  Saudi Arabia 5 QS Stars 45.2 Shortlist"]
[null,"United States",null,null,null,"=203  University of Ottawa Ottawa,  Canada 45.2 Shortlist"]
[94,"Charité - Universitätsmedizin Berlin",null,null,null,"205  Universität Hamburg Hamburg,  Germany 45.1 Shortlist"]
[null,"Germany",null,null,null,"206  University of Otago Dunedin,  New Zealand 5+ QS Stars More Details 45 Shortlist"]
[{"$f":"95","v":95},"Lomonosov Moscow State University",null,null,null,"207  Vrije Universiteit Amsterdam Amsterdam,  Netherlands 44.9 Shortlist"]
[null,"Russian Federation",null,null,null,"208  University of Aberdeen Aberdeen,  United Kingdom 44.6 Shortlist"]
[{"$f":"95","v":95},"University of Tübingen",null,null,null,"209  Queen's University at Kingston Kingston,  Canada 44.5 Shortlist"]
[null,"Germany",null,null,null,"210  University of Twente Enschede,  Netherlands 44.4 Shortlist"]
[{"$f":"97","v":97},"KTH Royal Institute of Technology",null,null,null,"211  Chulalongkorn University Bangkok,  Thailand More Details 44.3 Shortlist"]
[null,"Sweden",null,null,null,"212  Loughborough University Loughborough,  United Kingdom 5+ QS Stars More Details 44.2 Shortlist"]
[{"$f":"97","v":97},"University of Southampton",null,null,null,"213  Eberhard Karls Universität Tübingen Tübingen,  Germany 44.1 Shortlist"]
[null,"United Kingdom",null,null,null,"214  Keio University Tokyo,  Japan 44 Shortlist"]
[{"$f":"99","v":99},"Erasmus University Rotterdam",null,null,null,"215  Tel Aviv University Tel Aviv,  Israel 43.9 Shortlist"]
[null,"Netherlands",null,null,null,"216  Tongji University Shanghai,  China (Mainland) 43.5 Shortlist"]
[33.874000000000002,"36.0",null,null,null,"217  National Yang Ming Chiao Tung University Hsinchu City,  Taiwan 43.3 Shortlist"]
[{"$f":"99","v":99},"Ohio State University (Main campus)",null,null,null,"218  University of Sussex Brighton,  United Kingdom More Details 43.1 Shortlist"]
[null,"United States",null,null,null,"219  Università di Padova Padova,  Italy More Details 43 Shortlist"]
[101,"University of Birmingham",null,null,null,"=220  Universidade Estadual de Campinas (Unicamp) Campinas,  Brazil 42.7 Shortlist"]
[null,"United Kingdom",null,null,null,"=220  University of Lausanne Lausanne,  Switzerland 42.7 Shortlist"]
[102,"Free University of Berlin",null,null,null,"=222  Radboud University Nijmegen,  Netherlands More Details 42.5 Shortlist"]
[null,"Germany",null,null,null,"=222  University of Pittsburgh Pittsburgh,  United States 42.5 Shortlist"]
[{"$f":"103","v":103},"University of Copenhagen",null,null,null,"224  University of Rochester Rochester,  United States 42.4 Shortlist"]
[null,"Denmark",null,null,null,"225  Indian Institute of Science Bangalore,  India 42.1 Shortlist"]
[{"$f":"103","v":103},"McMaster University",null,null,null,"=226  American University of Beirut (AUB) Beirut ,  Lebanon 41.9 Shortlist"]
[null,"Canada",null,null,null,"=226  Universidad Nacional de Colombia Bogotá,  Colombia 41.9 Shortlist"]
[28.254000000000001,"2024-09-30",null,null,null,"228  National Cheng Kung University (NCKU) Tainan City,  Taiwan 41.8 Shortlist"]
[105,"University of Sheffield",null,null,null,"229  Friedrich-Alexander-Universität Erlangen-Nürnberg Erlangen,  Germany 41.7 Shortlist"]
[null,"United Kingdom",null,null,null,"=230  Al-Farabi Kazakh National University Almaty,  Kazakhstan 5 QS Stars More Details 41.6 Shortlist"]
[27.86,"2024-04-15",null,null,null,"=230  Khalifa University Abu Dhabi,  United Arab Emirates 5 QS Stars More Details 41.6 Shortlist"]
[{"$f":"106","v":106},"Emory University",null,null,null,"232  University of Göttingen Göttingen,  Germany 41.4 Shortlist"]
[null,"United States",null,null,null,"=233  Deakin University. Burwood,  Australia 41.3 Shortlist"]
[{"$f":"106","v":106},"Lund University",null,null,null,"=233  National Tsing Hua University Hsinchu City,  Taiwan 41.3 Shortlist"]
[null,"Sweden",null,null,null,"235  Heriot-Watt University Edinburgh,  United Kingdom More Details 41.2 Shortlist"]
[{"$f":"106","v":106},"University of Warwick",null,null,null,"236  Université Paris Cité Paris,  France More Details 41.1 Shortlist"]
[null,"United Kingdom",null,null,null,"=237  Dartmouth College Hanover,  United States 40.9 Shortlist"]
[24.905000000000001,"2024-04-14",null,null,null,"=237  Universitas Indonesia Depok,  Indonesia 40.9 Shortlist"]
[{"$f":"109","v":109},"Aarhus University",null,null,null,"=239  Massey University Palmerston North,  New Zealand 5+ QS Stars 40.6 Shortlist"]
[null,"Denmark",null,null,null,"=239  Rheinische Friedrich-Wilhelms-Universität Bonn Bonn,  Germany 40.6 Shortlist"]
[{"$f":"109","v":109},"University of Alberta",null,null,null,"241  Victoria University of Wellington Kelburn, Wellington,  New Zealand 5+ QS Stars 40.5 Shortlist"]
[null,"Canada",null,null,null,"242  La Trobe University Melbourne,  Australia 5+ QS Stars 40.3 Shortlist"]
[{"$f":"111","v":111},"University of Adelaide",null,null,null,"243  Griffith University Nathan,  Australia 40.1 Shortlist"]
[null,"Australia",null,null,null,"244  University of Surrey Guildford,  United Kingdom 39.9 Shortlist"]
[23.792000000000002,"1936-04-01",null,null,null,"245  University of Massachusetts Amherst Amherst,  United States 39.8 Shortlist"]
[{"$f":"111","v":111},"University of Göttingen",null,null,null,"=246  Technical University of Darmstadt Darmstadt,  Germany 39.7 Shortlist"]
[null,"Germany",null,null,null,"=246  Technische Universität Dresden Dresden,  Germany 39.7 Shortlist"]
[{"$f":"111","v":111},"Université de Montréal",null,null,null,"=248  Charles University Prague,  Czechia 39.6 Shortlist"]
[null,"Canada",null,null,null,"=248  University of Antwerp Antwerp,  Belgium More Details 39.6 Shortlist"]
[39.935000000000002,"2024-05-20",null,null,null,"250  University of Waikato Hamilton ,  New Zealand 5 QS Stars More Details 39.5 Shortlist"]
[114,"University of Maryland, College Park"]
[null,"United States"]
[115,"Ghent University"]
[null,"Belgium"]
[{"$f":"116","v":116},"University of Bern"]
[null,"Switzerland"]
[{"$f":"116","v":116},"Michigan State University"]
[null,"United States"]
[118,"Texas A&M University"]
[null,"United States"]
[{"$f":"119","v":119},"Rice University"]
[null,"United States"]
[{"$f":"119","v":119},"University of Vienna"]
[null,"Austria"]
[121,"University of Helsinki"]
[null,"Finland"]
[122,"Penn State (Main campus)"]
[null,"United States"]
[{"$f":"123","v":123},"University of Basel"]
[null,"Switzerland"]
[{"$f":"123","v":123},"University of Massachusetts"]
[null,"United States"]
[125,"Vrije Universiteit Amsterdam"]
[null,"Netherlands"]
[126,"Technical University of Denmark"]
[null,"Denmark"]
[127,"University of Oslo"]
[null,"Norway"]
[128,"University of Freiburg"]
[null,"Germany"]
[129,"University of Leeds"]
[null,"United Kingdom"]
[{"$f":"130","v":130},"University of Nottingham"]
[null,"United Kingdom"]
[{"$f":"130","v":130},"Tohoku University"]
[null,"Japan"]
[132,"University of Florida"]
[null,"United States"]
[133,"University of Rochester"]
[null,"United States"]
[134,"Trinity College Dublin"]
[null,"Ireland"]
[18.777999999999999,"2024-02-22"]
[135,"Queen Mary University of London"]
[null,"United Kingdom"]
[{"$f":"136","v":136},"University of Hamburg"]
[null,"Germany"]
[{"$f":"136","v":136},"Technical University of Berlin"]
[null,"Germany"]
[{"$f":"138","v":138},"University of Colorado Boulder"]
[null,"United States"]
[{"$f":"138","v":138},"Maastricht University"]
[null,"Netherlands"]
[21.337,"2024-06-19"]
[{"$f":"140","v":140},"Karlsruhe Institute of Technology"]
[null,"Germany"]
[{"$f":"140","v":140},"Radboud University Nijmegen"]
[null,"Netherlands"]
[23.004000000000001,"2024-02-18"]
[{"$f":"140","v":140},"Uppsala University"]
[null,"Sweden"]
[{"$f":"143","v":143},"University of Lausanne"]
[null,"Switzerland"]
[{"$f":"143","v":143},"The University of Western Australia"]
[null,"Australia"]
[{"$f":"145","v":145},"University of Pittsburgh-Pittsburgh campus"]
[null,"United States"]
[{"$f":"145","v":145},"Sungkyunkwan University (SKKU)"]
[null,"South Korea"]
[147,"University of York"]
[null,"United Kingdom"]
[148,"University of Technology Sydney"]
[null,"Australia"]
[149,"Pohang University of Science and Technology (POSTECH)"]
[null,"South Korea"]
[{"$f":"150","v":150},"University of Auckland"]
[null,"New Zealand"]
[{"$f":"150","v":150},"Sichuan University"]
[null,"China"]
[{"$f":"152","v":152},"University of Barcelona"]
[null,"Spain"]
[{"$f":"152","v":152},"National Taiwan University (NTU)"]
[null,"Taiwan"]
[24.744,"2024-11-01"]
[{"$f":"152","v":152},"Université Paris Cité"]
[null,"France"]
[61.69,"2024-09-16"]
[{"$f":"155","v":155},"University of Arizona"]
[null,"United States"]
[{"$f":"155","v":155},"University of Bologna"]
[null,"Italy"]
[74.105000000000004,"2024-07-24"]
[{"$f":"155","v":155},"Lancaster University"]
[null,"United Kingdom"]
[{"$f":"158","v":158},"Huazhong University of Science and Technology"]
[null,"China"]
[{"$f":"158","v":158},"University of Waterloo"]
[null,"Canada"]
[160,"University of Cologne"]
[null,"Germany"]
[{"$f":"161","v":161},"University of Antwerp"]
[null,"Belgium"]
[{"$f":"161","v":161},"Dartmouth College"]
[null,"United States"]
[{"$f":"161","v":161},"TU Dresden"]
[null,"Germany"]
[{"$f":"164","v":164},"Case Western Reserve University"]
[null,"United States"]
[{"$f":"164","v":164},"Wuhan University"]
[null,"China"]
[166,"University of Virginia (Main campus)"]
[null,"United States"]
[167,"University of Cape Town"]
[null,"South Africa"]
[21.960999999999999,"2024-06-13"]
[{"$f":"168","v":168},"Université Catholique de Louvain"]
[null,"Belgium"]
[{"$f":"168","v":168},"Eindhoven University of Technology"]
[null,"Netherlands"]
[{"$f":"168","v":168},"Harbin Institute of Technology"]
[null,"China"]
[{"$f":"168","v":168},"University of Liverpool"]
[null,"United Kingdom"]
[25.954999999999998,"2024-02-14"]
[{"$f":"168","v":168},"Newcastle University"]
[null,"United Kingdom"]
[25.65,"2024-08-14"]
[{"$f":"168","v":168},"Scuola Normale Superiore di Pisa"]
[null,"Italy"]
[174,"Durham University"]
[null,"United Kingdom"]
[{"$f":"175","v":175},"Osaka University"]
[null,"Japan"]
[{"$f":"175","v":175},"University of Würzburg"]
[null,"Germany"]
[{"$f":"177","v":177},"Beijing Normal University"]
[null,"China"]
[{"$f":"177","v":177},"University of Exeter"]
[null,"United Kingdom"]
[{"$f":"177","v":177},"University of Ottawa"]
[null,"Canada"]
[38.366,"2024-02-27"]
[180,"Macquarie University"]
[null,"Australia"]
[181,"Sapienza University of Rome"]
[null,"Italy"]
[182,"Arizona State University (Tempe)"]
[null,"United States"]
[48.87,"2024-07-19"]
[183,"University of Geneva"]
[null,"Switzerland"]
[184,"University of Twente"]
[null,"Netherlands"]
[{"$f":"185","v":185},"Stockholm University"]
[null,"Sweden"]
[{"$f":"185","v":185},"Tongji University"]
[null,"China"]
[{"$f":"187","v":187},"Georgetown University"]
[null,"United States"]
[{"$f":"187","v":187},"University of Mannheim"]
[null,"Germany"]
[189,"Chalmers University of Technology"]
[null,"Sweden"]
[190,"Cardiff University"]
[null,"United Kingdom"]
[28.815000000000001,"15.0"]
[{"$f":"191","v":191},"Tokyo Institute of Technology"]
[null,"Japan"]
[{"$f":"191","v":191},"Tufts University"]
[null,"United States"]
[{"$f":"193","v":193},"University of Erlangen-Nuremberg"]
[null,"Germany"]
[{"$f":"193","v":193},"University of Macau"]
[null,"Macao"]
[10.907999999999999,"2024-06-18"]
[{"$f":"193","v":193},"University of Münster"]
[null,"Germany"]
[{"$f":"193","v":193},"University of St Andrews"]
[null,"United Kingdom"]
[{"$f":"193","v":193},"Ulm University"]
[null,"Germany"]
[198,"Indiana University"]
[null,"United States"]
[{"$f":"199","v":199},"University of Notre Dame"]
[null,"United States"]
[{"$f":"199","v":199},"Queensland University of Technology"]
[null,"Australia"]
[35.164000000000001,"1937-09-01"]
[{"$f":"199","v":199},"Ulsan National Institute of Science and Technology (UNIST)"]
[null,"South Korea"]
[3.7989999999999999,"2024-11-08"]
["201–250","Aalborg University"]
[null,"Denmark"]
["201–250","Aalto University"]
[null,"Finland"]
["201–250","University of Aberdeen"]
[null,"United Kingdom"]
["201–250","Autonomous University of Barcelona"]
[null,"Spain"]
["201–250","University of Calgary"]
[null,"Canada"]
["201–250","University of California, Santa Cruz"]
[null,"United States"]
["201–250","Curtin University"]
[null,"Australia"]
[29.283000000000001,"2024-08-20"]
["201–250","Friedrich Schiller University Jena"]
[null,"Germany"]
["201–250","George Washington University"]
[null,"United States"]
["201–250","Goethe University Frankfurt"]
[null,"Germany"]
["201–250","University of Gothenburg"]
[null,"Sweden"]
["201–250","University of Hawai’i at Mānoa"]
[null,"United States"]
["201–250","University of Illinois Chicago"]
[null,"United States"]
["201–250","Indian Institute of Science"]
[null,"India"]
["201–250","University of Iowa"]
[null,"United States"]
["201–250","King Fahd University of Petroleum and Minerals"]
[null,"Saudi Arabia"]
["201–250","Korea University"]
[null,"South Korea"]
[22.324000000000002,"2024-03-16"]
["201–250","University of Leicester"]
[null,"United Kingdom"]
["201–250","Université Libre de Bruxelles"]
[null,"Belgium"]
["201–250","University of Luxembourg"]
[null,"Luxembourg"]
["201–250","Medical University of Graz"]
[null,"Austria"]
["201–250","Medical University of Vienna"]
[null,"Austria"]
["201–250","University of Miami"]
[null,"United States"]
["201–250","Moscow Institute of Physics and Technology (MIPT)"]
[null,"Russian Federation"]
["201–250","Nagoya University"]
[null,"Japan"]
["201–250","University of Newcastle"]
[null,"Australia"]
["201–250","Northeastern University, US"]
[null,"United States"]
["201–250","University of Padua"]
[null,"Italy"]
["201–250","Politecnico di Milano"]
[null,"Italy"]
[38.978000000000002,"2024-07-25"]
["201–250","Pompeu Fabra University"]
[null,"Spain"]
["201–250","University of Potsdam"]
[null,"Germany"]
["201–250","Queen’s University Belfast"]
[null,"United Kingdom"]
[20.895,"2024-02-17"]
["201–250","University of Reading"]
[null,"United Kingdom"]
["201–250","Rutgers University – New Brunswick"]
[null,"United States"]
["201–250","Sant’Anna School of Advanced Studies – Pisa"]
[null,"Italy"]
[718,"2024-07-04"]
["201–250","University of São Paulo"]
[null,"Brazil"]
["201–250","Southern University of Science and Technology (SUSTech)"]
[null,"China"]
[6.5750000000000002,"9.0"]
["201–250","Sun Yat-sen University"]
[null,"China"]
["201–250","University of Sussex"]
[null,"United Kingdom"]
["201–250","Swinburne University of Technology"]
[null,"Australia"]
["201–250","Tel Aviv University"]
[null,"Israel"]
["201–250","Tianjin University"]
[null,"China"]
["201–250","Tilburg University"]
[null,"Netherlands"]
[13.225,"1932-02-01"]
["201–250","University College Dublin"]
[null,"Ireland"]
["201–250","University of Utah"]
[null,"United States"]
["201–250","Vrije Universiteit Brussel"]
[null,"Belgium"]
["201–250","Western University"]
[null,"Canada"]
[30.175999999999998,"33.0"]